fUSD/lending_fUSD_20251130
["ID","MTS","AMOUNT","RATE_DAILY","PERIOD"]
[395133748,1764464793370,303.72375504,0.00010422,2]
[395133749,1764464793462,500.0,0.00010422,2]
[395133750,1764464793515,500.0,0.00010422,2]
[395133751,1764464793583,500.0,0.00010422,2]
[395133752,1764464793636,500.0,0.00010422,2]
[395133753,1764464793723,500.0,0.00010422,2]
[395133754,1764464793770,500.0,0.00010422,2]
[395133755,1764464793817,500.0,0.00010422,2]
[395133756,1764464793867,500.0,0.00010422,2]
[395133757,1764464793919,500.0,0.00010422,2]
[395133758,1764464793966,470.91582411,0.00010422,2]
[395133759,1764464794034,500.0,0.00010422,2]
[395133760,1764464794088,500.0,0.00010422,2]
[395133761,1764464794134,500.0,0.00010422,2]
[395133762,1764464794202,500.0,0.00010422,2]
[395133763,1764464794251,500.0,0.00010422,2]
[395133764,1764464794292,500.0,0.00010422,2]
[395133765,1764464794342,500.0,0.00010422,2]
[395133766,1764464794384,500.0,0.00010422,2]
[395133767,1764464794461,500.0,0.00010422,2]
[395133768,1764464794533,225.37042085,0.00010422,2]
[395133769,1764464794559,274.62957915,0.00010422,2]
[395133770,1764464794607,500.0,0.00010422,2]
[395133771,1764464794680,500.0,0.00010422,2]
[395133772,1764464794729,500.0,0.00010422,2]
[395133773,1764464794770,500.0,0.00010422,2]
[395133774,1764464794811,500.0,0.00010422,2]
[395133775,1764464794878,500.0,0.00010422,2]
[395133776,1764464794943,500.0,0.00010422,2]
[395133777,1764464795011,500.0,0.00010422,2]
[395133778,1764464795061,500.0,0.00010422,2]
[395133779,1764464795102,500.0,0.00010422,2]
[395133780,1764464795146,500.0,0.00010422,2]
[395133781,1764464795190,500.0,0.00010422,2]
[395133782,1764464795253,500.0,0.00010422,2]
[395133783,1764464795332,500.0,0.00010422,2]
[395133784,1764464795375,500.0,0.00010422,2]
[395133785,1764464795406,-548.92255414,0.00010423,2]
[395133786,1764464795449,500.0,0.00010422,2]
[395133787,1764464795494,500.0,0.00010422,2]
[395133788,1764464795536,-2956.04033069,0.00010423,2]
[395133789,1764464795595,-4087.92933862,0.00010423,2]
[395133790,1764464795623,-308.22,0.00010423,2]
[395133791,1764464796156,-0.02,0.00010423,2]
[395133792,1764464796198,-0.04,0.00010423,2]
[395133793,1764464796275,-0.08,0.00010423,2]
[395133794,1764464796315,-0.16,0.00010423,2]
[395133795,1764464797323,-1210.75741064,0.00010423,2]
[395133796,1764464797361,-8788.93258936,0.00010423,2]
[395133797,1764464797372,-1210.99741064,0.00010423,2]
[395133798,1764464797417,-9999.85,0.00010423,2]
[395133799,1764464797449,-195.0,0.00010423,2]
[395133801,1764464799222,-247.13285064,0.00010423,2]
[395133802,1764464802962,-302.0,0.00010423,2]
[395133803,1764464803093,-10000.01,0.00010423,2]
[395133804,1764464805230,-561.95516506,0.00010423,2]
[395133806,1764464808431,-300.0,0.00010423,2]
[395133807,1764464809735,-2186.94457366,0.00010423,2]
[395133808,1764464809763,-299.99,0.00010423,2]
[395133809,1764464809789,-510.37,0.00010423,2]
[395133810,1764464809847,-4005.40085268,0.00010423,2]
[395133811,1764464811316,-191.2233833,0.00010423,2]
[395133812,1764464814664,-500.0,0.00010422,2]
[395133813,1764464814690,-25.77771,0.00010422,2]
[395133815,1764464816949,-195.0,0.00010422,2]
[395133816,1764464818518,-279.22229,0.00010422,2]
[395133817,1764464818547,-20.77771,0.00010422,2]
[395133818,1764464820694,-186.36171461,0.00010422,2]
[395133819,1764464823461,-202.84926283,0.00010422,2]
[395133820,1764464826234,-90.01131256,0.00010422,2]
[395133821,1764464826259,-428.40868744,0.00010422,2]
[395133822,1764464828855,-71.59131256,0.00010422,2]
[395133823,1764464828883,-93.75684055,0.00010422,2]
[395133826,1764464831335,-483.74802053,0.00010418,2]
[395133827,1764464833227,-16.25197947,0.00010418,2]
[395133828,1764464833250,-167.77779564,0.00010418,2]
[395133829,1764464838567,-159.98626008,0.00010369,2]
[395133830,1764464840909,-249.98626008,0.00010369,2]
[395133834,1764464844668,-195.0,0.00010369,2]
[395133835,1764464849862,-137.38693984,0.00010369,2]
[395133836,1764464849886,-200.62842454,0.00010418,2]
[395133837,1764464851569,-131.59377982,0.00010418,2]
[395133838,1764464851594,-368.40622018,0.00010418,2]
[395133839,1764464853261,-131.59377982,0.00010418,2]
[395133840,1764464853289,-307.10851488,0.00010418,2]
[395133841,1764464854980,-192.89148512,0.00010418,2]
[395133842,1764464855001,-17.40622018,0.00010418,2]
[395133843,1764464857384,-250.71056848,0.00010418,2]
[395133844,1764464859898,-153.7343932,0.00010418,2]
[395133845,1764464861223,-78.14881814,0.00010418,2]
[395133846,1764464861245,-168.55735313,0.00010418,2]
[395133848,1764464863983,-201.6155017,0.00010418,2]
[395133849,1764464866761,-228.19920063,0.00010418,2]
[395133850,1764464866799,-151.0,0.00010418,2]
[395133851,1764464866838,-118.82554668,0.00010418,2]
[395133852,1764464872169,-32.17445332,0.00010418,2]
[395133853,1764464872191,-139.91804478,0.00010418,2]
[395133854,1764464873342,-250.0,0.00010417,2]
[395133855,1764464876614,-172.85401695,0.00010417,2]
[395133856,1764464878715,-202.30130885,0.00010417,2]
[395133857,1764464881772,-250.0,0.00010417,2]
[395133858,1764464883608,-36.8446742,0.00010417,2]
[395133859,1764464883631,-11.08195522,0.00010418,2]
[395133860,1764464883661,-200.0,0.00010418,2]
[395133861,1764464883688,-126.34335765,0.00010418,2]
[395133863,1764464884976,-24.65664235,0.00010418,2]
[395133864,1764464884999,-151.0,0.00010418,2]
[395133865,1764464885021,-151.0,0.00010418,2]
[395133866,1764464885044,-151.0,0.00010418,2]
[395133867,1764464885066,-55.27559827,0.00010418,2]
[395133868,1764464887125,-95.72440173,0.00010418,2]
[395133869,1764464887150,-63.25596621,0.00010418,2]
[395133870,1764464888754,-166.18536062,7.945e-05,2]
[395133871,1764464890500,-199.15671879,7.945e-05,2]
[395133872,1764464892228,-300.0,7.945e-05,2]
[395133873,1764464895047,-183.73534559,7.945e-05,2]
[395133874,1764464895068,-0.82709696,0.00010418,2]
[395133875,1764464898784,-86.91693683,0.00010418,2]
[395133876,1764464898809,-151.0,0.00010418,2]
[395133877,1764464898833,-42.23338514,0.00010418,2]
[395133878,1764464901043,-249.54801596,0.00010418,2]
[395133879,1764464903367,-156.10674992,0.00010418,2]
[395133880,1764464904985,-52.11184898,0.00010418,2]
[395133881,1764464905009,-151.0,0.00010418,2]
[395133882,1764464905032,-151.0,0.00010418,2]
[395133883,1764464905054,-145.88815102,0.00010418,2]
[395133884,1764464906733,-5.11184898,0.00010418,2]
[395133885,1764464906758,-151.0,0.00010418,2]
[395133886,1764464906781,-84.12334716,0.00010418,2]
[395133888,1764464908287,-66.87665284,0.00010418,2]
[395133889,1764464908309,-99.78334716,0.00010418,2]
[395133890,1764464909365,-51.21665284,0.00010418,2]
[395133891,1764464909760,-151.0,0.00010418,2]
[395133892,1764464909789,-151.0,0.00010418,2]
[395133893,1764464909817,-151.0,0.00010418,2]
[395133894,1764464909845,-151.0,0.00010418,2]
[395133895,1764464909873,-151.0,0.00010418,2]
[395133896,1764464909901,-151.0,0.00010418,2]
[395133897,1764464909928,-151.0,0.00010418,2]
[395133898,1764464909955,-151.0,0.00010418,2]
[395133899,1764464909982,-151.0,0.00010418,2]
[395133900,1764464910010,-151.0,0.00010418,2]
[395133901,1764464910039,-151.0,0.00010418,2]
[395133902,1764464910068,-151.0,0.00010418,2]
[395133903,1764464910099,-151.0,0.00010418,2]
[395133904,1764464910128,-151.0,0.00010418,2]
[395133905,1764464910159,-151.0,0.00010418,2]
[395133906,1764464910186,-151.0,0.00010418,2]
[395133907,1764464910215,-151.0,0.00010418,2]
[395133908,1764464910242,-151.0,0.00010418,2]
[395133909,1764464910269,-200.0,0.00010418,2]
[395133910,1764464910295,-200.0,0.00010418,2]
[395133911,1764464910322,-173.21142824,0.00010418,2]
[395133912,1764464910353,-406.24315945,0.00010422,2]
[395133913,1764464910384,-500.0,0.00010422,2]
[395133914,1764464910414,-500.0,0.00010422,2]
[395133915,1764464910445,-2.66751894,0.00010422,2]
[395133916,1764464910562,-497.33248106,0.00010422,2]
[395133917,1764464910592,-500.0,0.00010422,2]
[395133918,1764464910624,-500.0,0.00010422,2]
[395133919,1764464910655,-500.0,0.00010422,2]
[395133920,1764464910687,-500.0,0.00010422,2]
[395133921,1764464910719,-500.0,0.00010422,2]
[395133922,1764464910750,-500.0,0.00010422,2]
[395133923,1764464910780,-299.98821413,0.00010422,2]
[395133924,1764464910807,-797.06576402,0.00010423,2]
[395133925,1764464910834,-150.99,0.00010423,2]
[395133926,1764464910875,-1526.34,0.00010423,2]
[395133927,1764464910902,-499.99,0.00010423,2]
[395133928,1764464910965,-0.02,0.00010423,2]
[395133929,1764464911441,-581.0457758,0.00010423,2]
[395133930,1764464911807,-509.24708158,0.00010423,2]
[395133931,1764464911820,-499.99,0.00010423,2]
[395133932,1764464911833,-5947.35,0.00010423,2]
[395133933,1764464911853,-2462.33714262,0.00010423,2]
[395133934,1764464911863,-6214.9,0.00010424,2]
[395133935,1764464911872,-1322.75285738,0.00010424,2]
[395133936,1764464912876,-1322.77285738,0.00010424,2]
[395133937,1764464912898,-7354.46428524,0.00010424,2]
[395133938,1764464912981,-10000.01,0.00010424,2]
[395133939,1764464913092,-10000.01,0.00010424,2]
[395133940,1764464913123,-500.0,0.00010424,2]
[395133941,1764464918306,-500.0,0.00010424,2]
[395133942,1764464920655,-308.23795862,0.00010365,2]
[395133943,1764464923490,-500.0,0.00010365,2]
[395133944,1764464925530,-500.0,0.00010365,2]
[395133945,1764464929288,-153.01384584,0.00010318,2]
[395133946,1764464930547,-232.76894462,0.00010318,2]
[395133948,1764464932134,-35.64270648,0.00010318,2]
[395133949,1764464932156,-317.93641938,0.00010365,2]
[395133950,1764464932176,-538.13775982,0.00010424,2]
[395133951,1764464933815,-421.42549692,0.00010321,2]
[395133952,1764464933837,-78.57450291,0.00010424,2]
[395133953,1764464938048,-167.788819,0.00010424,2]
[395133955,1764464941458,-248.70577889,0.00010324,2]
[395133956,1764464943647,-172.71971803,0.00010324,2]
[395133957,1764464943668,-150.0,0.00010423,2]
[395133958,1764464943689,-128.28028197,0.00010424,2]
[395134068,1764464996844,-250.0,0.0001041,2]
[395134069,1764464996872,-172.39515754,0.00010423,2]
[395134070,1764464996902,-500.0,0.00010423,2]
[395134071,1764464996939,-500.0,0.00010423,2]
[395134072,1764464996969,-365.19962735,0.00010423,2]
[395134073,1764464996998,-1000.0,0.00010423,2]
[395134074,1764464997195,-4424.82043022,0.00010424,2]
[395134075,1764464997208,-10000.01,0.00010424,2]
[395134076,1764464997220,-10000.01,0.00010424,2]
[395134077,1764464997233,-10000.01,0.00010424,2]
[395134078,1764464997246,-10000.01,0.00010424,2]
[395134079,1764464997258,-10000.01,0.00010424,2]
[395134080,1764464997272,-10000.01,0.00010424,2]
[395134081,1764464997284,-10000.01,0.00010424,2]
[395134082,1764464997297,-10000.01,0.00010424,2]
[395134083,1764465004613,-300.0,0.00010423,2]
[395134084,1764465004645,-300.0,0.00010423,2]
[395134085,1764465004682,-1200.0,0.00010423,2]
[395134086,1764465005230,-6400.01,0.00010424,2]
[395134087,1764465005266,-936.67820608,0.00010424,2]
[395134088,1764465005294,-521.61358784,0.00010424,2]
[395134089,1764465005354,-2916.58358784,0.00010424,2]
[395134090,1764465005403,-4166.84282432,0.00010424,2]
[395134091,1764465005432,-127.28435136,0.00010424,2]
[395134092,1764465005487,-1411.75564864,0.00010424,2]
[395134093,1764465005546,-0.02,0.00010424,2]
[395134094,1764465005680,-5544.36641216,0.00010424,2]
[395134095,1764465005713,-4455.60358784,0.00010424,2]
[395134096,1764465005762,-1114.06,0.00010424,2]
[395134097,1764465005771,-136.21923648,0.00010424,2]
[395134098,1764465005805,-14.77076352,0.00010424,2]
[395134099,1764465005814,-999.99,0.00010424,2]
[395134100,1764465005825,-190.44560645,0.00010424,2]
[395134101,1764465008776,200.0,0.00010424,2]
[395134102,1764465009010,-4845.82,0.00010526,2]
[395134103,1764465009057,-308.37,0.00010526,2]
[395134104,1764465009084,-200.0,0.00010528,2]
[395134105,1764465009113,-1513.25,0.00010697,2]
[395134106,1764465009273,-108.37,0.0001076,2]
[395134107,1764465009287,-5956.77,0.0001076,2]
[395134108,1764465011124,-4588.55,0.0001076,2]
[395134109,1764465011147,-822.91,0.0001076,2]
[395134110,1764465011322,-255.53,0.0001077,2]
[395134111,1764465011351,-217.0,0.00010833,2]
[395134112,1764465011382,-3900.76,0.00010902,2]
[395134113,1764465011432,-1253.43,0.00010902,2]
[395134114,1764465011464,-1499.0,0.00010927,2]
[395134115,1764465011493,-188.0,0.00010949,2]
[395134116,1764465011520,-200.0,0.00010966,2]
[395134117,1764465011548,-500.0,0.00010966,2]
[395134118,1764465011580,-200.0,0.00010966,2]
[395134119,1764465011618,-774.87,0.00010967,2]
[395134120,1764465011710,-3276.27,0.00010967,2]
[395134121,1764465014336,-1250.0,0.0001097,2]
[395134122,1764465014366,-1513.25,0.00010971,2]
[395134123,1764465014426,-4473.51,0.00011099,2]
[395134124,1764465014554,-10000.01,0.00011099,2]
[395134125,1764465014803,-10000.01,0.00011099,2]
[395134127,1764465015873,-2875.76947127,0.00011099,2]
[395134128,1764465015906,-4248.47105746,0.00011099,2]
[395134129,1764465020921,-10000.01,0.00011099,2]
[395134131,1764465024005,-10000.01,0.00011099,2]
[395134132,1764465024123,-3100.80841375,0.00011099,2]
[395134133,1764465024152,-599.0,0.00011118,2]
[395134134,1764465024180,-934.0,0.0001114,2]
[395134135,1764465024308,-732.3931725,0.00011163,2]
[395134136,1764465024710,-380.6068275,0.00011163,2]
[395134137,1764465024745,-1165.0,0.00011185,2]
[395134138,1764465024776,-455.0,0.00011207,2]
[395134139,1764465024807,-1998.0,0.00011229,2]
[395134140,1764465024838,-489.546345,0.00011245,2]
[395134141,1764465024916,-1023.703655,0.00011245,2]
[395134142,1764465024947,-1857.0,0.00011251,2]
[395134143,1764465024977,-1234.7802,0.0001126,2]
[395134144,1764465025008,-40.04229,0.00011274,2]
[395134145,1764465025148,-983.661365,0.00011274,2]
[395134146,1764465025206,-705.296345,0.00011274,2]
[395134147,1764465025216,-1023.703655,0.00011278,2]
[395134148,1764465027074,-4130.486345,0.00011278,2]
[395134149,1764465027104,-255.53,0.00011368,2]
[395134150,1764465027134,-255.0,0.00011444,2]
[395134151,1764465027163,-250.0,0.0001146,2]
[395134152,1764465027256,-217.97731,0.0001146,2]
[395134153,1764465027314,-202.02269,0.0001146,2]
[395134154,1764465027343,-420.0,0.0001146,2]
[395134155,1764465027373,-193.0,0.00011464,2]
[395134156,1764465027402,-250.0,0.00011464,2]
[395134157,1764465027433,-1680.0,0.00011465,2]
[395134158,1764465027462,-250.0,0.00011465,2]
[395134159,1764465027490,-207.01462427,0.00011514,2]
[395134160,1764465027520,-597.09424157,0.00011514,2]
[395134161,1764465027550,-200.0,0.00011514,2]
[395134162,1764465027582,-488.49688832,0.00011519,2]
[395134163,1764465027642,-1024.75311168,0.00011519,2]
[395134164,1764465027672,-2751.0,0.00011652,2]
[395134165,1764465027898,-1024.75311168,0.00011654,2]
[395134166,1764465027920,-2448.50377664,0.00011654,2]
[395134167,1764465031335,-1680.93311168,0.00011654,2]
[395134168,1764465031362,-210.28,0.00011692,2]
[395134169,1764465031572,-6217.58377664,0.00011785,2]
[395134170,1764465031591,-10000.01,0.00011785,2]
[395134171,1764465031605,-10000.01,0.00011785,2]
[395134172,1764465031619,-1131.69569457,0.00011785,2]
[395134173,1764465031630,-1513.25,0.00011793,2]
[395134174,1764465031640,-255.53,0.00011967,2]
[395134175,1764465031649,-5154.19,0.0001203,2]
[395134176,1764465031660,-200.0,0.00012062,2]
[395134177,1764465031670,-1513.25,0.00012067,2]
[395134178,1764465031679,-232.09430543,0.00012119,2]
[395134180,1764465035856,-5443.29270989,0.00012119,2]
[395134181,1764465035866,-1513.25,0.00012341,2]
[395134182,1764465035876,-5154.19,0.00012405,2]
[395134183,1764465035885,-1756.58622519,0.00012516,2]
[395134184,1764465035974,-1518.58334676,0.00012516,2]
[395134185,1764465036002,-6943.92151329,0.00012516,2]
[395134186,1764465036015,-1618.14212,0.00012516,2]
[395134187,1764465036044,-734.40908078,0.00012516,2]
[395134188,1764465036657,-10000.01,0.00012516,2]
[395134189,1764465036766,-4777.64718519,0.00012516,2]
[395134190,1764465036795,-189.18562962,0.00012565,2]
[395134191,1764465036849,-66.34437038,0.00012565,2]
[395134192,1764465036884,-433.0,0.0001257,2]
[395134193,1764465036911,-293.17896482,0.00012591,2]
[395134194,1764465036938,-587.0,0.00012601,2]
[395134195,1764465036966,-587.0,0.00012601,2]
[395134196,1764465036993,-200.0,0.0001261,2]
[395134197,1764465037022,-2351.0,0.00012612,2]
[395134198,1764465037155,-1513.25,0.00012615,2]
[395134199,1764465037182,-524.31842456,0.00012758,2]
[395134200,1764465037211,-770.68315088,0.00012781,2]
[395134201,1764465037307,-4383.50684912,0.00012781,2]
[395134202,1764465037393,-1097.65207036,0.00012857,2]
[395134205,1764465037428,-794.14360141,0.00012857,2]
[395134206,1764465037437,-1513.25,0.00012889,2]
[395134207,1764465037446,-2076.11324771,0.00012893,2]
[395134208,1764465037463,-1232.99630176,0.00012893,2]
[395134215,1764465037837,-4850.03045053,0.00012893,2]
[395134216,1764465037849,-4130.57,0.00012893,2]
[395134217,1764465037859,-207.4,0.00013157,2]
[395134218,1764465037870,-5154.19,0.00013157,2]
[395134219,1764465037880,-200.0,0.00013158,2]
[395134220,1764465037890,-1513.25,0.00013163,2]
[395134221,1764465037899,-255.53,0.00013163,2]
[395134222,1764465037909,-27349.29947121,0.00013247,2]
[395134223,1764465037918,-1891.79567177,0.00013329,2]
[395134224,1764465037927,-524.31842454,0.0001335,2]
[395134225,1764465037936,-1513.27,0.00013437,2]
[395134226,1764465037945,-5154.19,0.00013533,2]
[395134227,1764465037955,-202.73584854,0.00013547,2]
[395134228,1764465037963,-500.0,0.00013547,2]
[395134229,1764465037973,-11970.13077131,0.00013548,2]
[395134230,1764465037982,-1248.23131937,0.00013549,2]
[395134231,1764465037991,-200.0,0.00013549,2]
[395134232,1764465038000,-1000.0,0.00013549,2]
[395134233,1764465038009,-103176.4815767,0.00013678,2]
[395134234,1764465038018,-200.0,0.00013684,2]
[395134235,1764465038027,-200.0,0.00013684,2]
[395134236,1764465038037,-500.0,0.00013698,2]
[395134237,1764465038047,-500.0,0.00013698,2]
[395134238,1764465038057,-500.0,0.00013698,2]
[395134240,1764465038066,-500.0,0.00013698,2]
[395134242,1764465038075,-500.0,0.00013698,2]
[395134244,1764465038085,-500.0,0.00013698,2]
[395134246,1764465038093,-500.0,0.00013698,2]
[395134248,1764465038103,-514.85765919,0.00013698,2]
[395134250,1764465038112,-500.0,0.00013698,2]
[395134252,1764465038122,-500.0,0.00013698,2]
[395134254,1764465038131,-500.0,0.00013698,2]
[395134256,1764465038140,-500.0,0.00013698,2]
[395134258,1764465038149,-607.692763,0.00013698,2]
[395134260,1764465038159,-500.0,0.00013698,2]
[395134262,1764465038168,-500.0,0.00013698,2]
[395134264,1764465038177,-500.0,0.00013698,2]
[395134266,1764465038187,-500.0,0.00013698,2]
[395134268,1764465038196,-500.0,0.00013698,2]
[395134270,1764465038206,-500.0,0.00013698,2]
[395134272,1764465038216,-500.0,0.00013698,2]
[395134274,1764465038225,-500.0,0.00013698,2]
[395134276,1764465038234,-500.0,0.00013698,2]
[395134278,1764465038244,-630.9506587,0.00013698,2]
[395134280,1764465038255,-500.0,0.00013698,2]
[395134282,1764465038264,-500.0,0.00013698,2]
[395134284,1764465038273,-500.0,0.00013698,2]
[395134286,1764465038284,-174.2008656,0.00013698,2]
[395134288,1764465038293,-500.0,0.00013698,2]
[395134290,1764465038303,-500.0,0.00013698,2]
[395134292,1764465038312,-500.0,0.00013698,2]
[395134294,1764465038322,-500.0,0.00013698,2]
[395134296,1764465038331,-500.0,0.00013698,2]
[395134298,1764465038341,-500.0,0.00013698,2]
[395134300,1764465038350,-500.0,0.00013698,2]
[395134302,1764465038361,-500.0,0.00013698,2]
[395134304,1764465038369,-500.0,0.00013699,2]
[395134306,1764465038379,-444.3730983,0.00013699,2]
[395134308,1764465038388,-500.0,0.00013699,2]
[395134310,1764465038397,-500.0,0.00013699,2]
[395134312,1764465038406,-500.0,0.00013699,2]
[395134314,1764465038416,-500.0,0.00013699,2]
[395134316,1764465038425,-255.53,0.00013762,2]
[395134318,1764465038435,-250.0,0.00013774,2]
[395134320,1764465038444,-736.0,0.000138,2]
[395134322,1764465038454,-500.0,0.00013807,2]
[395134325,1764465038464,-500.0,0.00013807,2]
[395134327,1764465038473,-200.0,0.00013821,2]
[395134328,1764465038483,-200.0,0.00013821,2]
[395134331,1764465038492,-150.0,0.00013842,2]
[395134332,1764465038501,-150.0,0.00013842,2]
[395134334,1764465038511,-150.0,0.00013842,2]
[395134337,1764465038523,-500.0,0.00013842,2]
[395134338,1764465038532,-150.0,0.00013842,2]
[395134340,1764465038542,-150.0,0.00013842,2]
[395134342,1764465038551,-500.0,0.00013842,2]
[395134344,1764465038561,-150.0,0.00013842,2]
[395134346,1764465038571,-500.0,0.00013842,2]
[395134349,1764465038584,-250.0,0.00013842,2]
[395134350,1764465038594,-500.0,0.00013842,2]
[395134353,1764465038604,-150.0,0.00013842,2]
[395134355,1764465038613,-500.0,0.00013842,2]
[395134357,1764465038625,-500.0,0.00013842,2]
[395134359,1764465038634,-500.0,0.00013842,2]
[395134360,1764465038644,-500.0,0.00013842,2]
[395134362,1764465038654,-500.0,0.00013842,2]
[395134364,1764465038664,-157.99052045,0.00013842,2]
[395134366,1764465038674,-500.0,0.00013842,2]
[395134368,1764465038684,-401.72363687,0.00013848,2]
[395134370,1764465038694,-73.5962722,0.00013849,2]
[395134372,1764465038705,-500.0,0.00013849,2]
[395134374,1764465038714,-500.0,0.00013849,2]
[395134376,1764465038725,-500.0,0.00013849,2]
[395134378,1764465038735,-310.52351775,0.00013849,2]
[395134379,1764465038744,-532.59359614,0.00013849,2]
[395134381,1764465038753,-823.0,0.00013855,2]
[395134382,1764465038763,-593.0,0.00013855,2]
[395134383,1764465038772,-3292.0,0.00013873,2]
[395134384,1764465038782,-5154.19,0.00013909,2]
[395134385,1764465038792,-524.31842454,0.00013941,2]
[395134386,1764465038802,-200.0,0.0001396,2]
[395134387,1764465038812,-200.0,0.0001396,2]
[395134388,1764465038822,-27349.29947121,0.00013977,2]
[395134389,1764465038832,-208.7124507,0.00013979,2]
[395134390,1764465038841,-150.0,0.00013979,2]
[395134391,1764465038851,-600.0,0.00013979,2]
[395134392,1764465038861,-150.0,0.00013979,2]
[395134393,1764465038871,-150.0,0.00013979,2]
[395134394,1764465038885,-518.09228248,0.00013979,2]
[395134395,1764465038896,-150.0,0.00013979,2]
[395134396,1764465038907,-500.0,0.00013979,2]
[395134397,1764465038916,-500.0,0.00013979,2]
[395134398,1764465038926,-500.0,0.00013979,2]
[395134399,1764465038935,-500.0,0.00013979,2]
[395134400,1764465038945,-500.0,0.00013979,2]
[395134401,1764465039278,-500.0,0.00013979,2]
[395134402,1764465039310,-500.0,0.00013979,2]
[395134403,1764465039319,-500.0,0.00013979,2]
[395134404,1764465039329,-162.0,0.00014,2]
[395134405,1764465039339,-500.0,0.0001401,2]
[395134406,1764465039348,-500.0,0.0001401,2]
[395134407,1764465039357,-500.0,0.00014056,2]
[395134408,1764465039367,-200.0,0.00014099,2]
[395134409,1764465039377,-200.0,0.00014099,2]
[395134410,1764465039386,-207.71038414,0.00014116,2]
[395134411,1764465039395,-150.0,0.00014116,2]
[395134412,1764465039404,-150.0,0.00014116,2]
[395134413,1764465039415,-150.0,0.00014116,2]
[395134414,1764465039424,-500.0,0.00014116,2]
[395134415,1764465039434,-500.0,0.00014116,2]
[395134416,1764465039444,-500.0,0.00014116,2]
[395134417,1764465039453,-500.0,0.00014116,2]
[395134418,1764465039463,-500.0,0.00014116,2]
[395134419,1764465039472,-500.0,0.00014116,2]
[395134420,1764465039481,-500.0,0.00014116,2]
[395134421,1764465039490,-500.0,0.00014116,2]
[395134422,1764465039499,-500.0,0.00014147,2]
[395134423,1764465039509,-200.0,0.00014253,2]
[395134424,1764465039518,-200.0,0.00014253,2]
[395134425,1764465039527,-300.0,0.00014253,2]
[395134426,1764465039536,-271.89568788,0.00014253,2]
[395134427,1764465039545,-500.0,0.00014253,2]
[395134428,1764465039555,-500.0,0.00014253,2]
[395134429,1764465039564,-500.0,0.00014253,2]
[395134430,1764465039574,-500.0,0.00014253,2]
[395134431,1764465039588,-150.0,0.00014253,2]
[395134432,1764465039597,-500.0,0.00014253,2]
[395134433,1764465039607,-999.0,0.00014266,3]
[395134434,1764465039616,-5154.19,0.00014285,2]
[395134435,1764465039627,-189.4726562,0.0001429,2]
[395134436,1764465039636,-255.53,0.0001436,2]
[395134437,1764465039646,-2000.0,0.00014371,2]
[395134438,1764465039656,-500.0,0.0001439,2]
[395134439,1764465039667,-500.0,0.0001439,2]
[395134440,1764465039676,-500.0,0.0001439,2]
[395134441,1764465039685,-500.0,0.0001439,2]
[395134442,1764465039694,-500.0,0.0001439,2]
[395134443,1764465039704,-154.18165703,0.00014449,2]
[395134444,1764465039713,-500.0,0.00014449,2]
[395134445,1764465039722,-160.08,0.00014456,2]
[395134446,1764465039731,-151.0,0.00014521,2]
[395134447,1764465039741,-500.0,0.00014527,2]
[395134448,1764465039751,-500.0,0.00014527,2]
[395134449,1764465039760,-500.0,0.00014527,2]
[395134450,1764465039770,-500.0,0.00014527,2]
[395134451,1764465039779,-500.0,0.00014527,2]